bitfinex-derivatives/quotes_SOLF0:USTF0_20250514
["timestamp","ask_amount","ask_price","bid_price","bid_amount"]
[1747217503790,5.5639,179.72,179.71,58.08]
[1747217506998,58.1,179.75,179.71,58.08]
[1747217507694,5.5638,179.73,179.71,58.08]
[1747217507989,58.1,179.75,179.71,63.644]
[1747217508196,63.6631,179.75,179.71,58.08]
[1747217508590,58.1,179.75,179.71,58.08]
[1747217508791,5.5639,179.73,179.71,58.08]
[1747217510495,5.5639,179.73,179.7,58.08]
[1747217510697,5.5639,179.72,179.67,1.7293]
[1747217510889,5.5639,179.72,179.68,58.08]
[1747217511090,58.1,179.75,179.69,5.5646]
[1747217511593,5.5637,179.73,179.68,58.08]
[1747217512595,5.5637,179.73,179.7,5.5644]
[1747217512990,5.5637,179.73,179.68,58.08]
[1747217514297,5.564,179.72,179.68,58.08]
[1747217514893,5.5637,179.73,179.69,5.5646]
[1747217515296,58.1,179.75,179.68,58.08]
[1747217515598,5.5634,179.74,179.7,5.5645]
[1747217515799,58.1,179.75,179.68,58.08]
[1747217515999,63.6631,179.75,179.71,5.564]
[1747217516195,58.1,179.75,179.72,58.08]
[1747217516998,5.5633,179.74,179.72,58.08]
[1747217517201,58.1,179.75,179.72,58.08]
[1747217517401,63.6631,179.75,179.72,63.6438]
[1747217518402,5.5623,179.78,179.74,5.5633]
[1747217518701,60.3706,179.82,179.72,58.08]
[1747217518902,58.58,179.82,179.73,1.7557]
[1747217519102,5.5618,179.79,179.76,5.5625]
[1747217519298,58.58,179.82,179.76,63.6425]
[1747217520501,5.562,179.79,179.76,58.08]
[1747217521303,5.562,179.79,179.76,63.6426]
[1747217521808,5.5621,179.78,179.76,58.08]
[1747217522606,5.5618,179.79,179.76,58.08]
[1747217522805,5.5618,179.79,179.76,63.6426]
[1747217523005,58.58,179.82,179.74,58.08]
[1747217523405,5.5628,179.76,179.74,58.08]
[1747217525109,5.563,179.75,179.74,58.08]
[1747217526905,5.5641,179.72,179.7,58.54]
[1747217527105,58.52,179.77,179.7,58.54]
[1747217527702,5.5642,179.71,179.7,58.54]
[1747217528206,5.5642,179.71,179.66,7.3403]
[1747217528207,5.565,179.69,179.66,7.3403]
[1747217529809,5.5651,179.68,179.66,1.7748]
[1747217530312,58.62,179.71,179.66,1.7748]
[1747217530712,5.5651,179.69,179.66,1.7748]
[1747217533111,5.5651,179.68,179.66,1.7748]
[1747217534312,5.5649,179.69,179.66,1.7748]
[1747217535011,5.5649,179.69,179.66,7.3405]
[1747217536514,5.5646,179.7,179.66,7.3405]
[1747217537917,58.62,179.71,179.66,1.7748]
[1747217538314,58.62,179.71,179.69,5.5645]
[1747217538513,58.62,179.71,179.69,58.56]
[1747217539008,5.5633,179.74,179.69,58.56]
[1747217539511,5.5633,179.74,179.7,5.5644]
[1747217541214,5.5637,179.73,179.7,5.5644]
[1747217541619,5.5637,179.73,179.69,64.1247]
[1747217541918,5.5639,179.72,179.69,64.1247]
[1747217542315,5.5637,179.73,179.69,64.1247]
[1747217542915,5.564,179.72,179.69,64.1247]
[1747217543819,5.5642,179.71,179.66,1.7748]
[1747217544018,58.48,179.75,179.67,58.56]
[1747217544220,1.8732,179.74,179.67,58.56]
[1747217545520,5.5648,179.69,179.67,64.1254]
[1747217545719,58.34,179.72,179.67,58.56]
[1747217548215,5.5641,179.72,179.69,5.5646]
[1747217548718,58.28,179.74,179.67,58.56]
[1747217549113,5.5637,179.73,179.69,5.5648]
[1747217550525,5.5639,179.72,179.69,5.5648]
[1747217550923,58.28,179.75,179.69,5.5648]
[1747217551124,5.5636,179.73,179.69,5.5648]
[1747217551623,5.563,179.75,179.67,58.56]
[1747217551820,58.24,179.77,179.67,58.56]
[1747217552020,5.5633,179.74,179.71,5.5642]
[1747217552321,58.22,179.77,179.71,5.5642]
[1747217552522,5.5631,179.75,179.71,5.5642]
[1747217553825,5.5631,179.75,179.72,58.56]
[1747217554527,5.5628,179.76,179.72,64.1237]
[1747217554722,60.0306,179.78,179.72,58.56]
[1747217554916,58.14,179.78,179.72,58.56]
[1747217555222,5.5625,179.77,179.74,5.5632]
[1747217556728,5.5625,179.77,179.73,5.5635]
[1747217557228,5.5625,179.77,179.72,58.56]
[1747217557727,5.5625,179.77,179.73,5.5634]
[1747217558427,5.5621,179.78,179.74,5.5632]
[1747217559330,5.5624,179.77,179.74,5.5632]
[1747217559629,5.5624,179.77,179.72,64.1236]
[1747217560429,5.5627,179.76,179.72,64.1236]
[1747217560924,5.563,179.75,179.72,58.56]
[1747217561122,58.14,179.79,179.72,58.56]
[1747217561329,1.7961,179.78,179.72,58.56]
[1747217561625,58.14,179.79,179.72,58.56]
[1747217562129,5.5625,179.77,179.73,5.5635]
[1747217562326,5.5625,179.77,179.72,58.56]
[1747217562526,58.14,179.79,179.72,58.56]
[1747217562727,5.5628,179.76,179.72,64.1237]
[1747217563435,5.5625,179.77,179.72,64.1237]
[1747217564432,5.5626,179.76,179.72,64.1237]
[1747217565034,5.5625,179.77,179.72,64.1237]
[1747217566031,5.5625,179.77,179.73,5.5635]
[1747217567136,5.5627,179.76,179.72,64.1238]
[1747217567442,58.14,179.79,179.72,58.56]
[1747217567836,5.5626,179.77,179.73,5.5635]
[1747217570442,5.5627,179.76,179.73,5.5635]
[1747217571850,5.5627,179.76,179.72,64.1237]
[1747217573250,5.5627,179.76,179.73,5.5636]
[1747217573944,5.5624,179.77,179.74,5.5632]
[1747217574148,58.12,179.8,179.72,58.56]
[1747217574648,5.5623,179.78,179.74,5.5631]
[1747217575050,5.5624,179.77,179.74,5.5631]
[1747217575251,5.5624,179.77,179.73,5.5634]
[1747217575442,58.12,179.8,179.72,58.56]
[1747217575644,58.12,179.8,179.71,58.1]
[1747217575952,4.38935334,179.79,179.71,58.1]
[1747217576149,6.29955334,179.79,179.71,58.1]
[1747217576347,5.5639,179.72,179.71,58.1]
[1747217579155,5.5637,179.73,179.71,58.1]
[1747217580155,5.5639,179.72,179.71,58.1]
[1747217584853,62.50935334,179.82,179.71,58.1]
[1747217585046,58.12,179.81,179.71,58.1]
[1747217585248,5.5622,179.78,179.71,58.1]
[1747217585445,5.5622,179.78,179.71,59.9935]
[1747217585657,5.5622,179.78,179.71,61.7237]
[1747217585856,5.5622,179.78,179.71,63.4553]
[1747217586452,5.5618,179.79,179.71,63.4553]
[1747217586655,58.12,179.8,179.74,5.5631]
[1747217586956,58.12,179.8,179.75,58.12]
[1747217587853,5.5626,179.77,179.75,58.12]
[1747217590055,5.5621,179.78,179.75,58.12]
[1747217591055,5.5621,179.78,179.75,63.6829]
[1747217591354,5.5621,179.78,179.75,58.12]
[1747217592558,5.5621,179.78,179.75,63.6828]
[1747217592757,1.7404,179.83,179.75,58.12]
[1747217592956,58.1,179.84,179.76,4.38935334]
[1747217593458,5.5607,179.83,179.79,5.5616]
[1747217593660,58.1,179.84,179.79,63.6616]
[1747217594563,5.5606,179.83,179.79,63.6616]
[1747217594857,58.1,179.86,179.79,58.1]
[1747217595258,5.5602,179.84,179.8,5.5613]
[1747217595557,58.1,179.86,179.8,5.5613]
[1747217595760,5.5605,179.83,179.79,63.6616]
[1747217596158,5.5605,179.83,179.79,58.1]
[1747217596558,5.5605,179.83,179.79,63.6616]
[1747217596852,5.5605,179.83,179.79,58.1]
[1747217597249,58.1,179.87,179.79,58.1]
[1747217597448,58.1,179.87,179.79,62.48935334]
[1747217597652,58.1,179.9,179.8,58.1]
[1747217597851,62.48935334,179.94,179.82,4.38935334]
[1747217597852,58.1,179.91,179.82,4.38935334]
[1747217598053,66.12855334,179.94,179.83,58.1]
[1747217598252,5.5587,179.89,179.83,58.1]
[1747217598955,5.5587,179.89,179.85,5.5598]
[1747217600362,58.1,179.93,179.85,5.5598]
[1747217600654,58.08,179.92,179.84,5.5601]
[1747217600961,5.5591,179.88,179.84,5.5601]
[1747217601362,5.5591,179.88,179.85,5.5598]
[1747217601662,5.5591,179.88,179.83,58.1]
[1747217601961,5.5591,179.88,179.84,5.56]
[1747217602263,5.5591,179.88,179.77,5.5492]
[1747217602264,58.08,179.92,179.79,4.38935334]
[1747217602462,62.46935334,179.91,179.8,58.08]
[1747217602662,58.08,179.9,179.8,58.08]
[1747217602862,4.38935334,179.88,179.8,58.08]
[1747217603062,61.7183,179.87,179.77,1.8844]
[1747217603263,61.7183,179.87,179.77,59.9644]
[1747217603461,5.5612,179.81,179.77,59.9644]
[1747217603966,5.5612,179.81,179.78,5.562]
[1747217604662,5.5609,179.82,179.79,5.5616]
[1747217605166,5.5612,179.81,179.78,5.562]
[1747217605355,5.5612,179.81,179.77,59.9644]
[1747217605964,5.5609,179.82,179.77,59.9644]
[1747217606165,58.08,179.83,179.77,59.9644]
[1747217606365,58.08,179.83,179.79,5.5615]
[1747217606568,58.08,179.83,179.77,59.9644]
[1747217606866,58.08,179.83,179.79,5.5616]
[1747217607259,58.08,179.83,179.77,59.9644]
[1747217607468,59.9259,179.87,179.82,5.5607]
[1747217607862,5.5596,179.86,179.82,5.5607]
[1747217608971,5.5599,179.85,179.81,63.641]
[1747217609169,59.9259,179.87,179.81,58.08]
[1747217610574,59.9259,179.87,179.81,63.6411]
[1747217610766,59.9259,179.87,179.81,58.08]
[1747217611370,5.5602,179.84,179.81,63.641]
[1747217612172,5.5602,179.84,179.81,58.08]
[1747217612568,5.56,179.85,179.81,58.08]
[1747217612971,5.56,179.85,179.82,5.5608]
[1747217613172,5.56,179.85,179.81,58.08]
[1747217613374,5.5602,179.84,179.81,58.08]
[1747217613678,5.5602,179.84,179.81,63.6409]
[1747217615478,59.9259,179.87,179.81,58.08]
[1747217616275,5.5604,179.84,179.81,63.6409]
[1747217617374,5.5599,179.85,179.82,5.5607]
[1747217618275,5.5602,179.84,179.81,63.641]
[1747217618876,58.08,179.9,179.81,58.08]
[1747217619075,1.844,179.91,179.81,58.08]
[1747217619270,5.5591,179.88,179.84,5.56]
[1747217619475,5.5591,179.88,179.85,58.06]
[1747217619677,58.08,179.91,179.85,58.06]
[1747217620072,5.5593,179.87,179.85,58.06]
[1747217620775,5.5596,179.86,179.85,58.06]
[1747217621177,58.08,179.91,179.85,58.06]
[1747217621371,5.5592,179.88,179.85,58.06]
[1747217622075,5.5593,179.87,179.85,58.06]
[1747217622375,58.08,179.91,179.85,58.06]
[1747217623077,58.08,179.91,179.85,63.6198]
[1747217623279,5.5591,179.88,179.85,63.6198]
[1747217623673,58.08,179.91,179.85,58.06]
[1747217624178,5.5595,179.87,179.85,58.06]
[1747217625080,5.5596,179.86,179.85,58.06]
[1747217625275,62.46935334,179.91,179.83,58.06]
[1747217625479,58.06,179.87,179.8,58.06]
[1747217625683,5.5606,179.83,179.8,63.6212]
[1747217626183,58.06,179.87,179.8,58.06]
[1747217626475,5.5603,179.84,179.81,5.5611]
[1747217627081,5.5606,179.83,179.8,63.6213]
[1747217627282,58.06,179.87,179.8,58.06]
[1747217627584,5.5598,179.86,179.83,5.5604]
[1747217627782,5.5598,179.86,179.8,58.06]
[1747217628081,5.5598,179.86,179.82,5.5606]
[1747217628282,5.5598,179.86,179.8,58.06]
[1747217628688,5.5598,179.86,179.83,5.5605]
[1747217629181,63.6194,179.87,179.83,5.5605]
[1747217629582,63.6194,179.87,179.84,58.06]
[1747217630289,58.06,179.87,179.84,63.6199]
[1747217630479,58.06,179.87,179.84,58.06]
[1747217630880,63.6194,179.87,179.84,63.6201]
[1747217631487,63.6194,179.87,179.84,58.06]
[1747217632276,58.06,179.87,179.84,58.06]
[1747217632886,5.5599,179.85,179.84,58.06]
[1747217636987,58.06,179.87,179.81,58.06]
[1747217637891,5.5608,179.83,179.81,63.6211]
[1747217638291,5.5608,179.83,179.81,58.06]
[1747217638491,5.5608,179.82,179.81,58.06]
[1747217638693,58.06,179.87,179.81,58.06]
[1747217639088,5.5606,179.83,179.81,58.06]
[1747217640094,5.5606,179.83,179.81,63.6211]
[1747217640393,5.5606,179.83,179.81,58.06]
[1747217642093,5.5603,179.84,179.81,63.621]
[1747217643695,1.8911,179.9,179.83,5.5604]
[1747217643896,58.06,179.89,179.83,5.5604]
[1747217644598,5.5594,179.87,179.84,5.5601]
[1747217645501,58.06,179.89,179.81,58.06]
[1747217646002,63.6189,179.89,179.83,5.5603]
[1747217646203,63.6189,179.89,179.81,58.06]
[1747217646495,58.06,179.89,179.81,58.06]
[1747217646904,58.06,179.89,179.85,5.5597]
[1747217647201,58.06,179.89,179.81,58.06]
[1747217647804,1.8936,179.94,179.81,116.1]
[1747217648000,1.8936,179.94,179.82,6.13165334]
[1747217648204,58.04,179.93,179.9,5.5581]
[1747217649105,58.04,179.93,179.91,5.558]
[1747217649804,58.04,179.93,179.9,5.5582]
[1747217650705,63.5974,179.93,179.91,5.558]
[1747217651804,58.04,179.93,179.91,5.558]
[1747217652904,63.5974,179.93,179.91,5.558]
[1747217654305,58.04,179.93,179.91,5.558]
[1747217655304,63.5974,179.93,179.91,5.558]
[1747217656007,58.04,179.93,179.92,5.5577]
[1747217657108,58.04,179.93,179.91,5.5579]
[1747217657502,63.5974,179.93,179.91,5.5579]
[1747217658710,4.38935334,179.92,179.82,58.02]
[1747217659196,5.5587,179.89,179.82,58.02]
[1747217659395,58.02,179.88,179.82,58.02]
[1747217659703,58.02,179.88,179.78,11.124]
[1747217659898,58.02,179.88,179.79,116.04]
[1747217660308,58.02,179.88,179.85,5.5596]
[1747217661304,63.5789,179.88,179.85,5.5596]
[1747217661606,58.02,179.88,179.79,58.02]
[1747217661901,5.5596,179.86,179.79,58.02]
[1747217662203,5.5601,179.85,179.81,5.5611]
[1747217662505,58.02,179.88,179.79,58.02]
[1747217662806,58.02,179.88,179.82,5.5605]
[1747217663300,58.02,179.88,179.83,5.5602]
[1747217663504,58.02,179.88,179.79,58.02]
[1747217664106,58.02,179.88,179.84,5.5601]
[1747217664403,58.02,179.88,179.83,5.5604]
[1747217664806,58.02,179.88,179.79,58.02]
[1747217665009,5.5598,179.86,179.79,58.02]
[1747217665408,58.02,179.88,179.79,58.02]
[1747217665709,5.5594,179.87,179.79,58.02]
[1747217666208,5.5596,179.86,179.79,58.02]
[1747217666608,58.02,179.88,179.81,5.5611]
[1747217666808,58.02,179.88,179.79,58.02]
[1747217667308,5.5602,179.84,179.8,5.5612]
[1747217667499,58.02,179.88,179.79,58.02]
[1747217667702,1.7939,179.9,179.79,116.04]
[1747217667904,58.02,179.93,179.83,4.38935334]
[1747217668108,58.02,179.93,179.84,61.859]
[1747217668307,58.04,179.96,179.84,61.859]
[1747217668505,58.02,179.95,179.85,1.9121]
[1747217669308,5.5576,179.93,179.85,1.9121]
[1747217669610,58.02,179.95,179.85,1.9121]
[1747217670408,5.5579,179.92,179.85,1.9121]
[1747217670610,58.02,179.95,179.85,1.9121]
[1747217671010,5.5577,179.92,179.88,5.5587]
[1747217671209,58.04,179.96,179.88,58.04]
[1747217671410,58.02,179.95,179.88,58.04]
[1747217671610,58.02,179.96,179.88,58.04]
[1747217672108,5.5573,179.94,179.9,5.5581]
[1747217673815,5.5573,179.94,179.89,5.5585]
[1747217674015,5.5574,179.93,179.89,5.5585]
[1747217676315,5.5568,179.95,179.9,5.558]
[1747217676512,58.0,179.96,179.9,5.558]
[1747217676913,5.5574,179.93,179.89,5.5585]
[1747217678616,5.5574,179.93,179.9,5.5583]
[1747217678816,5.5572,179.94,179.9,5.5583]
[1747217679620,1.7299,179.98,179.88,58.04]
[1747217679920,58.0,180.01,179.89,4.38935334]
[1747217680122,58.0,180.01,179.9,1.8968]
[1747217680319,5.5559,179.98,179.94,5.5569]
[1747217680515,5.5559,179.98,179.95,57.98]
[1747217680716,58.0,180.01,179.95,57.98]
[1747217681415,58.0,180.0,179.95,57.98]
[1747217681716,5.556,179.98,179.95,57.98]
[1747217682125,58.0,180.0,179.95,57.98]
[1747217682327,5.5557,179.99,179.95,63.5366]
[1747217682620,58.0,180.0,179.95,63.5366]
[1747217683421,5.5559,179.98,179.95,57.98]
[1747217683624,114.70663836,180.04,179.95,57.98]
[1747217683825,57.98,180.03,179.95,57.98]
[1747217684016,56.72663836,180.04,179.95,57.98]
[1747217684222,57.98,180.04,179.95,57.98]
[1747217684621,5.5548,180.02,179.98,5.5558]
[1747217685125,5.5549,180.01,179.97,5.5561]
[1747217685817,5.5553,180.0,179.97,5.5561]
[1747217686026,5.5553,180.0,179.96,5.5563]
[1747217687225,5.5553,180.0,179.97,5.5561]
[1747217688118,5.5553,180.0,179.96,5.5563]
[1747217688425,57.98,180.04,179.95,57.98]
[1747217688620,57.98,180.04,179.96,57.98]
[1747217688919,5.5562,179.97,179.96,57.98]
[1747217690125,5.5575,179.93,179.91,57.96]
[1747217690426,57.98,179.96,179.91,57.96]
[1747217690727,5.5569,179.95,179.91,57.96]
[1747217691224,57.98,179.96,179.91,63.5177]
[1747217691525,57.98,179.96,179.91,57.96]
[1747217692225,5.5577,179.92,179.91,57.96]
[1747217694427,5.5575,179.93,179.91,57.96]
[1747217697522,1.9085,179.99,179.91,57.96]
[1747217697724,57.98,179.98,179.91,57.96]
[1747217698525,5.5565,179.96,179.93,5.5573]
[1747217698727,57.98,179.98,179.91,57.96]
[1747217699028,5.5567,179.96,179.92,5.5576]
[1747217699321,57.98,179.98,179.92,5.5576]
[1747217699624,57.98,179.98,179.91,57.96]
[1747217700418,5.5573,179.94,179.91,63.5178]
[1747217700725,57.98,179.98,179.91,57.96]
[1747217700930,5.5577,179.92,179.91,57.96]
[1747217701120,57.98,179.98,179.86,484.2417]
[1747217701423,5.5582,179.91,179.88,5.5589]
[1747217701826,5.5585,179.9,179.87,63.5392]
[1747217702026,5.5585,179.9,179.87,57.98]
[1747217702226,57.98,179.93,179.87,57.98]
[1747217702423,5.5585,179.9,179.87,63.539]
[1747217702726,57.98,179.93,179.87,63.539]
[1747217702928,5.5586,179.9,179.87,63.539]
[1747217703229,57.98,179.93,179.88,5.5589]
[1747217704127,5.5582,179.91,179.88,5.5589]
[1747217705129,5.5582,179.91,179.87,63.5391]
[1747217706026,5.5583,179.9,179.87,57.98]
[1747217706327,57.98,179.93,179.87,57.98]
[1747217706528,5.5588,179.89,179.87,57.98]
[1747217706931,57.98,179.93,179.87,57.98]
[1747217707125,5.5589,179.88,179.87,57.98]
[1747217707327,57.98,179.89,179.83,57.98]
[1747217707526,57.98,179.88,179.83,57.98]
[1747217707726,5.5597,179.86,179.83,63.5405]
[1747217709424,57.98,179.88,179.83,57.98]
[1747217709929,63.5392,179.88,179.84,5.5601]
[1747217711233,63.5392,179.88,179.85,5.5598]
[1747217711633,63.5392,179.88,179.83,57.98]
[1747217712132,57.98,179.88,179.83,57.98]
[1747217713634,57.98,179.88,179.86,5.5593]
[1747217714133,57.98,179.88,179.87,5.5592]
[1747217716239,57.98,179.91,179.83,57.98]
[1747217716437,57.98,179.92,179.83,57.98]
[1747217716732,57.98,179.92,179.84,1.8374]
[1747217717646,57.98,179.96,179.84,1.8374]
[1747217717937,57.98,179.95,179.85,4.38935334]
[1747217718236,57.98,179.97,179.88,4.38935334]
[1747217718436,57.98,179.97,179.89,57.98]
[1747217718637,57.98,179.97,179.89,59.8228]
[1747217718837,57.98,179.97,179.96,5.5565]
[1747217719041,57.98,179.97,179.89,59.8228]
[1747217719434,57.98,179.97,179.96,5.5565]
[1747217719838,63.5353,180.0,179.96,5.5565]
[1747217720039,57.98,179.99,179.96,5.5565]
[1747217720341,57.98,179.99,179.93,57.96]
[1747217720639,59.6971,180.01,180.0,5.5552]
[1747217720839,57.96,180.01,180.0,5.5552]
[1747217722941,57.96,180.03,180.01,5.5546]
[1747217723136,57.96,180.03,179.97,57.96]
[1747217723333,62.35907901,180.06,179.97,57.96]
[1747217723636,57.96,180.05,179.97,62.34935334]
[1747217723841,1.7737,180.08,179.98,3.7042]
[1747217724233,59.7337,180.08,179.98,61.6642]
[1747217725541,59.7337,180.08,180.06,5.5532]
[1747217725844,8.23364449,180.1,180.03,62.34935334]
[1747217726041,8.23364449,180.1,180.04,57.96]
[1747217726535,8.23364449,180.1,180.09,5.5525]
[1747217728440,8.23364449,180.1,180.08,63.4927]
[1747217728640,8.23364449,180.1,180.08,57.94]
[1747217730443,8.23364449,180.1,180.08,63.4926]
[1747217730937,8.23364449,180.1,180.08,57.94]
[1747217731143,66.17364449,180.1,180.0,4.38935334]
[1747217731337,66.17364449,180.1,180.01,57.94]
[1747217731740,66.17364449,180.1,180.0,4.38935334]
[1747217731942,5.5534,180.06,180.01,57.92]
[1747217732342,1.8535,180.09,180.02,5.5545]
[1747217732541,5.5532,180.07,180.02,5.5545]
[1747217732841,1.8535,180.09,180.01,57.92]
[1747217733343,5.553,180.08,180.03,5.554]
[1747217733945,5.5531,180.07,180.03,5.554]
[1747217734746,5.5531,180.07,180.02,5.5545]
[1747217734946,5.5531,180.07,180.01,57.92]
[1747217735547,5.5528,180.08,180.03,5.5541]
[1747217735856,1.8535,180.09,180.01,57.92]
[1747217736148,5.5531,180.07,180.03,5.5542]
[1747217736350,1.8535,180.09,180.01,57.92]
[1747217736849,7.4061,180.09,180.04,5.5538]
[1747217737149,8.23364449,180.1,180.01,57.92]
[1747217737350,66.15364449,180.1,180.01,115.84]
[1747217737546,66.15364449,180.1,180.06,5.5532]
[1747217737750,66.15364449,180.1,180.06,63.4732]
[1747217738251,66.15364449,180.1,180.07,5.553]
[1747217738453,8.23364449,180.1,180.07,5.553]
[1747217738652,8.23364449,180.1,180.06,57.92]
[1747217738845,8.23364449,180.1,180.07,5.553]
[1747217740254,8.23364449,180.1,180.06,63.4733]
[1747217741052,13.78574449,180.1,180.06,63.4733]
[1747217741949,8.23364449,180.1,180.06,57.92]
[1747217742354,8.23364449,180.1,180.07,5.5528]
[1747217742956,8.23364449,180.1,180.09,5.5525]
[1747217748865,8.23364449,180.1,180.07,3.6498]
[1747217749063,8.23364449,180.1,180.07,1.7402]
[1747217749260,8.23364449,180.1,180.09,5.5525]
[1747217750363,57.92,180.17,180.11,5.5517]
[1747217750563,5.5505,180.16,180.11,57.9]
[1747217750764,57.92,180.17,180.12,5.5515]
[1747217751265,1.885,180.21,180.12,5.5515]
[1747217751568,57.9,180.2,180.11,57.9]
[1747217752066,5.5501,180.17,180.13,5.5512]
[1747217752367,5.5501,180.17,180.11,57.9]
[1747217752569,5.5501,180.17,180.12,5.5513]
[1747217752757,57.9,180.2,180.11,57.9]
[1747217753159,57.9,180.2,180.12,5.5514]
[1747217753360,5.5504,180.16,180.12,5.5514]
[1747217753565,57.9,180.2,180.12,5.5514]
[1747217753966,5.5505,180.16,180.11,57.9]
[1747217754269,5.5505,180.16,180.12,5.5513]
[1747217754463,5.5501,180.17,180.11,57.9]
[1747217754666,57.9,180.2,180.11,57.9]
[1747217755369,57.9,180.2,180.13,5.551]
[1747217755871,5.5501,180.17,180.14,5.5508]
[1747217756772,57.9,180.21,180.15,57.88]
[1747217757171,5.5493,180.2,180.16,5.5501]
[1747217757372,57.9,180.21,180.16,5.5501]
[1747217757568,57.9,180.21,180.15,57.88]
[1747217757772,5.5491,180.2,180.16,5.5501]
[1747217758073,5.5491,180.2,180.15,57.88]
[1747217758377,63.4489,180.21,180.18,5.5496]
[1747217759072,63.4489,180.21,180.15,57.88]
[1747217759668,63.4489,180.21,180.17,5.5498]
[1747217759971,57.9,180.21,180.15,57.88]
[1747217760166,63.4285,180.22,180.18,5.5495]
[1747217761268,5.5488,180.21,180.18,5.5495]
[1747217761475,57.88,180.22,180.18,5.5495]
[1747217761773,57.88,180.22,180.15,57.88]
[1747217761968,63.4285,180.22,180.15,57.88]
[1747217762170,57.88,180.22,180.15,57.88]
[1747217762369,57.88,180.22,180.15,62.26935334]
[1747217762771,5.5484,180.23,180.15,62.26935334]
[1747217762772,5.5484,180.23,180.19,5.5492]
[1747217762973,5.5484,180.23,180.19,63.4292]
[1747217763273,57.88,180.26,180.19,63.4293]
[1747217763474,57.88,180.26,180.19,57.88]
[1747217763772,5.5484,180.23,180.19,57.88]
[1747217764269,57.88,180.26,180.19,57.88]
[1747217764772,5.549,180.21,180.19,57.88]
[1747217764964,57.88,180.26,180.19,57.88]
[1747217766373,5.548,180.24,180.19,57.88]
[1747217766666,5.548,180.24,180.2,5.5489]
[1747217766876,5.548,180.24,180.19,57.88]
[1747217767177,5.5469,180.27,180.19,57.88]
[1747217767369,57.88,180.26,180.19,57.88]
[1747217767671,5.5478,180.24,180.19,57.88]
[1747217767873,5.5478,180.24,180.2,5.5489]
[1747217768275,57.88,180.27,180.2,5.5489]
[1747217768575,57.88,180.27,180.21,5.5487]
[1747217768977,57.88,180.27,180.19,57.88]
[1747217769677,5.5466,180.29,180.23,5.5481]
[1747217769879,57.86,180.28,180.23,57.86]
[1747217770682,57.86,180.28,180.25,5.5473]
[1747217770883,57.86,180.28,180.23,57.86]
[1747217771174,63.4261,180.3,180.25,5.5473]
[1747217771380,57.86,180.28,180.25,5.5473]
[1747217771581,57.86,180.28,180.23,57.86]
[1747217771783,57.86,180.28,180.25,5.5475]
[1747217772084,57.86,180.28,180.23,57.86]
[1747217772282,5.5472,180.26,180.16,1.883]
[1747217772482,57.86,180.28,180.17,57.86]